Cogmind - Beta 14 @@@ ROGUE MODE // 2024.11.02 @ 10:41:31 Player: SpaceWalrus Result: Destroyed by G-47 Trooper with Particle Gun Performance ------------- Evolutions (0) 0 Regions Visited (1) 200 Robots Destroyed (6) 30 Value Destroyed (118) 118 Prototype IDs (0) 0 Alien Tech Used (0) 0 Bonus (0) 0 TOTAL SCORE: 348 Bonus ------- None Cogmind --------- Core Integrity 0/250 Matter 300/300 Energy 100/100 System Corruption 2% Temperature Cool (9) Movement Core (100) Ox1 Location -10/Materials Parts ------- > --- POWER (1) -------- (None) > --- PROPULSION (2) --- (None) > --- UTILITY (2) ------ Small Storage Unit > --- WEAPON (2) ------- (None) > --- INVENTORY (8) ---- Light Ion Engine Improved Terrain Scanner Peak State ------------ > --- POWER ------------ Light Ion Engine > --- PROPULSION ------- Aluminum Leg Aluminum Leg > --- UTILITY ---------- Small Storage Unit Seismic Detector > --- WEAPON ----------- EM Pulse Gun Medium Laser > --- INVENTORY -------- Light Ion Engine Improved Terrain Scanner Small Laser [Rating: 7] Favorites ----------- Power Light Ion Engine Engine Light Ion Engine Propulsion Aluminum Leg Leg Aluminum Leg Utility Small Storage Unit Device Seismic Detector Storage Small Storage Unit Weapon EM Pulse Gun Energy Gun EM Pulse Gun Build | -11 -10 ------- Run | Yrd Mat Slots Evolved . | . . Power . | . . Propulsion . | . . Utility . | . . Weapon . | . . Parts Attached 8 | 7 1 Power 1 | 1 . Engine 1 | 1 . Core . | . . Reactor . | . . Propulsion 2 | 2 . Treads . | . . Leg 2 | 2 . Wheel . | . . Hover . | . . Flight . | . . Utility 2 | 2 . Device 1 | 1 . Storage 1 | 1 . Processor . | . . Hackware . | . . Protection . | . . Artifact . | . . Weapon 3 | 2 1 Energy Gun 3 | 2 1 Energy Cannon . | . . Ballistic Gun . | . . Ballistic Cannon . | . . Launcher . | . . Special Weapon . | . . Impact Weapon . | . . Slashing Weapon . | . . Piercing Weapon . | . . Special Melee Weapon . | . . Unidentified Prototypes . | . . Parts Lost 7 | . 7 Power 1 | . 1 Propulsion 2 | . 2 Utility 1 | . 1 Weapon 3 | . 3 Highest Loss Streak 7 | . 7 To Critical Strikes . | . . Average Slot Usage (%) 85 | . 85 Engine 9 | . 9 Leg 23 | . 23 Device 12 | . 12 Storage 14 | . 14 Energy Gun 23 | . 23 Peak Build Rating 7 | 7 7 Average Rating 5 | 4 6 On Entrance 3 | . 7 Naked Turns . | . . Heaviest Build 13 | 13 13 Greatest Support 20 | 20 20 Greatest Overweight (x) 2 | . 2 Average Overweight (x) . | . . Largest Inventory Capacity 8 | 8 8 Average Capacity 7 | 7 8 Most Carried 5 | 5 3 Average Carried 2 | 3 2 Final Capacity 8 | 8 8 Final Carried 3 | 3 2 Class Distribution -------------------- 100% | Mutant Dominant Class ---------------- Mutant | -10/Materials Resources | -11 -10 ----------- Run | Yrd Mat Matter Collected 270 | 270 . Remotely . | . . Salvage Created 214 | 97 117 Parts 12 | 4 8 Haulers Intercepted . | . . Recyclers Shooed 1 | 1 . Parts Field Recycled . | . . Retrieved Matter . | . . Parts Self-Destructed . | . . Prevented . | . . Kills | -11 -10 ------- Run | Yrd Mat Combat Hostiles Destroyed 2 | . 2 Melee 1 | . 1 Guns 1 | . 1 Classes Destroyed 5 | 2 3 Worker 1 | . 1 Tunneler 1 | 1 . Recycler 1 | 1 . Operator 1 | . 1 Grunt 2 | . 2 Best Kill Streak 2 | 2 2 Combat Bots Only 1 | . 1 Max Kills in Single Turn 1 | 1 1 Gunslinging . | . . Exploded . | . . Melee 1 | . 1 Uniques/NPCs Destroyed . | . . Combat | -11 -10 -------- Run | Yrd Mat Hostile Shots Fired 81 | . 81 Missed 24 | . 24 Damage Taken 760 | . 760 Core 253 | . 253 Absorbed by Shields . | . . Core Remaining (%) 100 | 100 . Volleys Fired 33 | 4 29 Largest 2 | 2 2 Hottest 90 | 90 90 Shots Fired 53 | 8 45 Gun 53 | 8 45 Cannon . | . . Launcher . | . . Special . | . . Kinetic . | . . Thermal 32 | 4 28 Explosive . | . . Electromagnetic 21 | 4 17 Robot Hit Streak 10 | 4 10 Robot Miss Streak 6 | 1 6 Penetration Max . | . . Secondary Targets . | . . Shots Hit Robots 31 | 5 26 Core Hits 10 | 3 7 Critical Kills . | . . Critical Parts Destroyed . | . . Critical Strikes 4 | 1 3 Burn 3 | 1 2 Corrupt 1 | . 1 Melee Attacks . | . . Impact . | . . Slashing . | . . Piercing . | . . Sneak Attacks . | . . Combat Hostiles . | . . Follow-up Attacks . | . . Damage Inflicted 445 | 64 381 Guns 415 | 64 351 Cannons . | . . Explosions . | . . Melee . | . . Ramming 30 | . 30 Kinetic . | . . Thermal 255 | 25 230 Explosive . | . . Electromagnetic 160 | 39 121 Impact . | . . Slashing . | . . Piercing . | . . Highest Corruption 2 | . 2 Average Corruption 2 | . 2 Corruption Purged . | . . Corruption Blocked . | . . Overload Shots . | . . Overflow Damage . | . . Projectiles . | . . Explosions . | . . Melee . | . . Knockbacks 1 | . 1 Impact 1 | . 1 Kinetic . | . . Secondary . | . . Self-Inflicted Damage 12 | . 12 Shots . | . . Rammed 12 | . 12 Targets Rammed 12 | . 12 Kicked . | . . Crushed . | . . Highest Temperature 351 | 70 351 Average Temperature 135 | 30 153 Received Heat Transfer 441 | . 441 Effects 4 | . 4 Interference 3 | . 3 Short Circuit 1 | . 1 Siege Activations . | . . Robots Corrupted . | . . Combat Hostiles . | . . Parts Fried . | . . Impact Corruptions . | . . Robots Melted . | . . Combat Hostiles . | . . Parts Melted 3 | 3 . Heat Transferred 927 | 148 779 Parts Sabotaged . | . . Parts Stolen . | . . Parts Stripped . | . . Power Chain Reactions . | . . Alert | -11 -10 ------- Run | Yrd Mat Peak Influence 76 | 10 76 Initial 6 | . 6 Average 22 | 5 28 Maximum Alert Level . | . . Low Security (%) 100 | 100 100 Level 1 . | . . Level 2 . | . . Level 3 . | . . Level 4 . | . . Level 5 . | . . High Security . | . . Max Security . | . . Squads Dispatched 1 | . 1 Investigation . | . . Extermination . | . . Reinforcement 1 | . 1 Assault . | . . Garrison . | . . Intercept . | . . Searches Triggered . | . . Construction Impeded . | . . Haulers Reinforced . | . . Active Scanning Responses . | . . Cargo Convoy Interrupts . | . . Stealth | -11 -10 --------- Run | Yrd Mat Distress Signals 1 | . 1 Communications Jammed . | . . Distress Signals . | . . Times Spotted 6 | . 6 Peak Tracking Total 3 | . 3 Tactical Retreats 1 | . 1 Traps | -11 -10 ------- Run | Yrd Mat Traps Triggered . | . . Indirectly . | . . Trap Hack Attempts . | . . Triggered . | . . Disarmed . | . . Reprogrammed . | . . Reused . | . . Traps Extracted . | . . Installed . | . . Triggered . | . . Machines | -11 -10 ---------- Run | Yrd Mat Machines Disabled 2 | . 2 Max in Single Turn 1 | . 1 Machines Repaired . | . . Machines Dismantled . | . . Machines Sabotaged . | . . Overloaded Fab Kills . | . . Hacking | -11 -10 --------- Run | Yrd Mat Machines Accessed 1 | . 1 Terminals 1 | . 1 Fabricators . | . . Repair Stations . | . . Recycling Units . | . . Scanalyzers . | . . Garrison Access . | . . Total Hacks 1 | . 1 Successful . | . . Failed 1 | . 1 Catastrophic 1 | . 1 Database Lockouts . | . . Manual . | . . Terminals 1 | . 1 Fabricators . | . . Repair Stations . | . . Recycling Units . | . . Scanalyzers . | . . Garrison Access . | . . Terminal Hacks . | . . Fabricator Hacks . | . . Repair Station Hacks . | . . Recycling Unit Hacks . | . . Scanalyzer . | . . Garrison Access Hacks . | . . Unauthorized Hacks . | . . Terminals . | . . Fabricators . | . . Repair Stations . | . . Recycling Units . | . . Scanalyzers . | . . Garrison Access . | . . Data Cores Recovered . | . . Used . | . . Hacking Detections 1 | . 1 Full Trace Events . | . . Feedback Events . | . . Feedback Blocked . | . . Robot Schematics Acquired . | . . Robots Built . | . . Authchips . | . . Time . | . . Total Robot Build Rating . | . . Part Schematics Acquired . | . . Parts Built . | . . Authchips . | . . Time . | . . Total Part Build Rating . | . . Parts Repaired . | . . Time . | . . Parts Recycled . | . . Recycled Matter . | . . Retrieved Matter . | . . Retrieved Components . | . . Parts Scanalyzed . | . . Part Schematics Acquired . | . . Parts Damaged . | . . Bothacking | -11 -10 ------------ Run | Yrd Mat Used RIF Installer . | . . Robots Hacked . | . . Non-combat . | . . Combat . | . . Robot Hacks Applied . | . . Relay Couplers Released . | . . Fabnet Peak Effective % . | . . Robots Rewired . | . . Allies Hacked . | . . Hacks Repelled . | . . Allies | -11 -10 -------- Run | Yrd Mat Total Allies . | . . Largest Group . | . . Highest-Rated Group . | . . Highest-Rated Ally . | . . Total Orders . | . . Ally Attacks . | . . Total Damage . | . . Kills . | . . Allies Corrupted . | . . Allies Melted . | . . Intel | -11 -10 ------- Run | Yrd Mat Robot Analysis Total . | . . Derelict Logs Recovered . | . . Drone Launches . | . . Drone Recoveries . | . . Exploration | -11 -10 ------------- Run | Yrd Mat Turns Passed 312 | 85 227 Spaces Moved 150 | 54 96 Core 22 | 9 13 Treads . | . . Legs 128 | 45 83 Wheels . | . . Hover . | . . Flight . | . . Fastest Speed 50 | 50 100 Average Speed 115 | 108 119 Slowest Speed 150 | 120 150 Overloaded Moves . | . . Propulsion Burnouts . | . . Robots Hopped . | . . Cave-ins Triggered . | . . Exploration Rate (%) 11 | 5 18 Regions Visited 1 Branch Regions . Pre-discovered Areas . | . . Known Exits Taken . | . . Unknown Exits Taken 1 | 1 . Scrap Searched . | . . Spaces Dug . | . . Terrain Destroyed . | . . Melee . | . . Projectile . | . . AOE . | . . Terrain Rammed . | . . Walls Destroyed . | . . Machines Disabled . | . . Actions | -11 -10 --------- Run | Yrd Mat Total 233 | 71 162 Wait 24 | . 24 Move 149 | 53 96 Hop . | . . Pick Up 7 | 7 . Fast Attach 3 | 3 . Attach 5 | 4 1 Detach . | . . Swap . | . . Drop . | . . Fire 33 | 4 29 Melee . | . . Ram 12 | . 12 Kick . | . . Crush . | . . Escape Stasis . | . . Rewire . | . . Trap . | . . Miscellaneous . | . . Route ------- -11/Scrapyard -10/Materials History --------- Turn | Location | Event 6 | -11/Scrapyard | Discovered new exit (range 15) 86 | -11/Scrapyard | Entered Materials 298 | -10/Materials | Core integrity fell below 50% 304 | -10/Materials | Build established: Mutant 308 | -10/Materials | Core integrity fell below 20% 313 | -10/Materials | Destroyed by G-47 Trooper with Particle Gun Last Messages --------------- Seismic Detector destroyed. Slammed into G-47 Trooper. G-34 Mercenary heat damages Heat Sink. Sml. Laser destroyed. Slammed into G-47 Trooper. G-47 Trooper knocked back. G-34 Mercenary heat damages Aluminum Leg. G-47 Trooper misfires. Slammed into G-47 Trooper. G-34 Mercenary heat damages Heat Sink, Aluminum Leg, Sml. Laser, Aluminum Leg. Slammed into G-47 Trooper. Destabilizing: System corrupted (+2). Slammed into G-47 Trooper. Slammed into G-34 Mercenary. R-06 Scavenger collects Hover Unit. Slammed into G-34 Mercenary. R-06 Scavenger collects Wheel. Slammed into G-34 Mercenary. G-34 Mercenary destroyed. Map ----- +----------------------------------------------------+ | ??????????????????????????????????????????? | | ??????????????????????????????????????????? | | ??????????????????????????????????????????? | | ??????????????????????????????????????????? | | ??????????????????????????????????????????? | | ??????????????????????????????????????????? | | ??????????????????????????????????????????? | | ??????????????????????????????????????????? | | ??????????????????????????????????????????? | | ??????????????????????????????????????????? | | ??????????????????????????????????????????? | | ??????????????????????????????????????????? | | ??????????????????????????????????????????? | | ??????????????????????????????????????????? | | ??????????????????????????????????????????? | | ??????????????????????????????????????????? | | ????? ??????????#############????????????? | | ??##?#+####+###### ????????????? | | T ? ?????????????? | | ^ ##########?????? | | """ """ """ """ # ??????? | | """ """ "" ^ """ # ??????? | | """ " " "" % "" # """ """??????? | | r %%%g # """ """ #????? | | %%%%%% + """ """ #????? | | % %=@ # #????? | | ????# ########### [ # #????? | | ????# ## #?????????# # """T""" #????? | | ?#" ????# #?????????# ###########????? | | ?????????# #????????## ##?#T"#????????? | | ?????????# #????????# ### "###??????? | | ?????????# #????????# #??????? | | ?????????# #????????# #??????? | | ?????????# #????????# #??????? | | ?????????# #????????# ###+####??????? | | ?????????# #????????## ### #??????? | | ???????? #?????????# #?# """ #??????? | | ??????? #?????????# #?# """ #??????? | | ?????? #?????????# #?# """ #??????? | | ????? #?????????# ??# #??????? | | ???? #?????????# ??# #??????? | | ?? #?????????# ??########??????? | | ? ??????????# ????????????????? | | ? ??????????# ?????????????????? | | ? ??????????? ?????????????????? | | ??? ?????????????????????????????? | | ????? ?????????????????????????????? | | ????????" ==?????????????????????????????? | | ?????????? ==?????????????????????????????? | | ??????????????????????????????????????????? | +----------------------------------------------------+ Best States ------------- Heat Dissipation 25 Energy Generation 10 Energy Capacity 125 Matter Stores 300 Matter Capacity 300 Sight Range 16 Terrain Scan Density 10 Evasion (%) 55 Item Schematics ----------------- None Robot Schematics ------------------ None Fabricated ------------ Nothing Alien Tech Used ----------------- None Achievements -------------- None Challenges ------------ None Game ------ Seed InsulatedParticleCutter Manual? 0 Play Time 00:04:47 Cumulative 42.4 hours Start 2024.10.31 @ 11:06:45 End 2024.11.02 @ 10:41:31 Sessions 2 Manual Loads 0 Difficulty Rogue Special Mode None Game No. 57 Rogue 57 Adventurer 0 Explorer 0 Win Type - Total 0 Types 0/0/0/0/0/0/0/0/0 Lore% 20 Gallery% 41 Achievement% 27 Wizard Run 0 Options --------- Layout 1 ASCII 0 Keyboard 0 Movement Numpad Keybinds 0 Fullscreen 1 Font 24/Smallcaps Map View 50x40 Zoom Use 0% Tactical HUD 0 Map Filters NONE Filters NONE Steam 1 RUN: 575ca548-6674-4305-a0ae-b99a167ba272